lending/lending_fUSD_20250508
["ID","MTS","AMOUNT","RATE_DAILY","PERIOD"]
[360286785,1746708631901,-207.4,0.00019872,2]
[360286786,1746708631910,-366.32675302,0.00019873,2]
[360286787,1746708631920,-500.0,0.00019873,2]
[360286788,1746708631930,-495.80302337,0.00019873,2]
[360286789,1746708631939,-500.0,0.00019873,2]
[360286790,1746708631949,-200.0,0.00019875,2]
[360286791,1746708631958,-12174.07035837,0.00019875,2]
[360286792,1746708631970,-14251.8,0.00019875,2]
[360286793,1746708631981,-273.33125,0.00019875,2]
[360286794,1746708632054,-1473.74424324,0.00019875,2]
[360286795,1746708632066,-663.23,0.00019875,2]
[360286796,1746708632170,-570.77733166,0.00019875,2]
[360286797,1746708632240,-1929.88700768,0.00019875,2]
[360286798,1746708632252,-16587.300936,0.00019875,2]
[360286836,1746708635372,163.95,0.00019419,2]
[360286837,1746708635593,163.95,0.00019468,2]
[360286916,1746708637917,-163.95,0.00019516,2]
[360286917,1746708637927,-117.83651295,0.00019875,2]
[360286918,1746708637972,-5776.1423601,0.00019875,2]
[360286919,1746708637982,-429.16326743,0.00019884,2]
[360287066,1746708640510,-8281.28673257,0.00019884,2]
[360287067,1746708640521,-4756.10410377,0.00019886,2]
[360287068,1746708640531,-151.14200429,0.00019888,2]
[360287069,1746708640540,-151.0,0.00019888,2]
[360287070,1746708640550,-155.0,0.00019888,2]
[360287071,1746708640559,-668.65185757,0.00019888,2]
[360287072,1746708640570,-2776.79761852,0.00019895,2]
[360287073,1746708640579,-176.06883371,0.00019899,2]
[360287074,1746708640589,-171.33993634,0.000199,2]
[360287075,1746708640601,-5306.28,0.000199,2]
[360287076,1746708640611,-174.45221257,0.000199,2]
[360287077,1746708640620,-3394.1563,0.000199,2]
[360287078,1746708640630,-187.6185472,0.000199,2]
[360287080,1746708640639,-6044.6621496,0.000199,2]
[360287081,1746708640650,-248.99837706,0.000199,2]
[360287082,1746708640661,-1000.0,0.000199,2]
[360287083,1746708640671,-1115.04645476,0.000199,2]
[360287084,1746708640680,-500.0,0.00019973,2]
[360287085,1746708640690,-500.0,0.00019973,2]
[360287086,1746708640699,-500.0,0.00019973,2]
[360287087,1746708640709,-500.0,0.00019973,2]
[360287088,1746708640719,-500.0,0.00019973,2]
[360287089,1746708640728,-191.88434438,0.00019973,2]
[360287090,1746708640738,-1384.485,0.00019986,2]
[360287091,1746708640748,-45170.5015834,0.00019986,2]
[360287092,1746708640758,-9022.7696961,0.00019986,2]
[360287093,1746708640768,-6012.019714,0.00019986,2]
[360287094,1746708640778,-76251.1421666,0.00019986,2]
[360287095,1746708640788,-1075.4699447,0.00019986,2]
[360287096,1746708640798,-3002.2262468,0.00019986,2]
[360287097,1746708640807,-14534.60305115,0.00019986,2]
[360287098,1746708640872,-500.0,0.00019986,2]
[360287099,1746708640884,-1300.0,0.00019986,2]
[360287100,1746708640895,-495.68719811,0.00019986,2]
[360287101,1746708641562,-6431.47036109,0.00019986,2]
[360287102,1746708641580,-1358.89812877,0.00019986,2]
[360287103,1746708641607,-921.54312845,0.00019986,2]
[360287104,1746708641620,-16243.86239283,0.00019986,2]
[360287105,1746708641632,-469.08458473,0.0001999,2]
[360287106,1746708641642,-300.0,0.00019999,2]
[360287107,1746708641653,-2267.79082802,0.00019999,2]
[360287108,1746708641831,-4755.6,0.00019999,2]
[360287109,1746708641852,-2768.10488298,0.00019999,2]
[360287121,1746708643306,-2708.504289,0.00019999,2]
[360287122,1746708643315,-191.34,0.00019999,2]
[360287123,1746708643324,-6717.64008263,0.00019999,2]
[360287124,1746708643351,-506.41198314,0.00019886,2]
[360287127,1746708643385,-1993.58801686,0.00019886,2]
[360287128,1746708643393,-1757.78751081,0.00019999,2]
[360287129,1746708643402,-1142.32570691,0.00019999,2]
[360287130,1746708643413,-926.29876542,0.00019999,2]
[360287131,1746708643434,-801.7304548,0.00019999,2]
[360287132,1746708643468,-432.71959327,0.00019999,2]
[360287135,1746708645756,-1284.67632211,0.00019999,2]
[360287136,1746708645766,-173.70088005,0.00019999,2]
[360287137,1746708645777,-206.99654718,0.00019999,2]
[360287138,1746708645788,-196.83345264,0.00019999,2]
[360287139,1746708645799,-182.83460901,0.00019999,2]
[360287140,1746708645809,-14.55944137,0.00019999,2]
[360287141,1746708645956,-485.44055863,0.00019999,2]
[360287142,1746708645966,-500.0,0.00019999,2]
[360287143,1746708645977,-500.0,0.00019999,2]
[360287144,1746708645987,-500.0,0.00019999,2]
[360287145,1746708645997,-500.0,0.00019999,2]
[360287146,1746708646007,-59.12947672,0.00019999,2]
[360287147,1746708688715,401.53,0.00019,2]
[360287148,1746708736932,2000.0,0.0003,120]
[360287149,1746708747193,634.0,0.0003,120]
[360287150,1746708753334,5885.12,0.00019314,2]
[360287152,1746708756889,266.8911625,0.00019314,2]
[360287153,1746708756913,574.6488375,0.00019314,2]
[360287154,1746708762931,2000.0,0.0003,120]
[360287155,1746708783325,3270.25,0.00019256,2]
[360287156,1746708839531,250.0,0.00017,2]
[360287157,1746708840693,164.52,0.00019,2]
[360287158,1746708840714,135.48,0.00019,2]
[360287159,1746708863030,1852.42,0.00019147,2]
[360287160,1746708873476,2725.7,0.00019128,2]
[360287161,1746709024149,17446.0,0.00019,7]
[360287162,1746709079058,1191.5011625,0.00019005,2]
[360287163,1746709079080,10000.0,0.00019005,2]
[360287164,1746709079101,5942.0388375,0.00019005,2]
[360287165,1746709085824,191.03,0.00019178,2]
[360287166,1746709171740,157.37,0.00018976,2]
[360287167,1746709172849,3709.5611625,0.0001898,2]
[360287168,1746709172871,6730.4788375,0.0001898,2]
[360287169,1746709173039,201.13829381,0.00018881,2]
[360287170,1746709283292,726.03,0.00017052,2]
[360287171,1746709283426,726.03,0.00019315,2]
[360287172,1746709289977,250.0,0.00018968,2]
[360287173,1746709302751,4000.0,0.00018965,2]
[360287174,1746709316373,241.038668,0.0003,30]
[360287175,1746709343983,151.0,0.0003,30]
[360287177,1746709394554,150.0,0.0003,30]
[360287178,1746709407235,1000.0,0.0001902,2]
[360287179,1746709504959,16917.59,0.00019,2]
[360287181,1746709596638,1902.35,0.00030137,120]
[360287182,1746709640647,312.29,0.00018951,2]
[360287183,1746709723212,1011.0,0.00030137,120]
[360287185,1746709762477,2609.03,0.00018945,2]
[360287190,1746709831885,-543.07666137,0.00019672,2]
[360287191,1746709831895,-200.0,0.00019673,2]
[360287193,1746709831904,-543.04,0.00019673,2]
[360287195,1746709831914,-377.6611,0.00019772,2]
[360287197,1746709831923,-53.03108864,0.00019785,2]
[360287198,1746709831950,-787.72537109,0.00019785,2]
[360287199,1746709831962,-359.24354027,0.00019785,2]
[360287200,1746709831971,-300.0,0.00019785,2]
[360287201,1746709832104,-901.52766083,0.00019786,2]
[360287202,1746709832126,-597.34073294,0.00019786,2]
[360287203,1746709832136,-640.21310778,0.00019786,2]
[360287204,1746709832148,-271.414428,0.00019786,2]
[360287205,1746709832159,-295.80682,0.00019786,2]
[360287206,1746709832171,-10297.03855045,0.00019786,2]
[360287207,1746709832180,-196.24865159,0.00019786,2]
[360287208,1746709832190,-1567.06713979,0.00019786,2]
[360287209,1746709832200,-207.4,0.00019788,2]
[360287210,1746709832210,-166.33,0.000198,2]
[360287211,1746709832220,-2500.0,0.00019832,2]
[360287212,1746709832229,-1000.0,0.00019832,2]
[360287213,1746709832239,-5000.0,0.00019872,2]
[360287214,1746709832249,-161.76963123,0.00019872,2]
[360287215,1746709832259,-582.42522966,0.00019872,2]
[360287216,1746709832268,-5865.54931814,0.00019872,2]
[360287217,1746709832277,-294.33363374,0.00019872,2]
[360287218,1746709832287,-1567.06713979,0.00019872,2]
[360287219,1746709832296,-1000.0,0.00019873,2]
[360287220,1746709832306,-150.99,0.00019873,2]
[360287221,1746709832315,-500.0,0.00019873,2]
[360287222,1746709832325,-500.0,0.00019873,2]
[360287223,1746709832335,-280.87424643,0.00019876,2]
[360287224,1746709832345,-31804.61055184,0.00019886,2]
[360287227,1746709832357,-415.32026094,0.00019886,2]
[360287229,1746709832368,-43010.79713,0.00019886,2]
[360287236,1746709832431,-1280.86813107,0.00019886,2]
[360287238,1746709832443,-1797.0960034,0.00019886,2]
[360287240,1746709832455,-321.29154664,0.00019886,2]
[360287243,1746709832467,-518.32839176,0.00019886,2]
[360287258,1746709832606,-1409.64450223,0.00019886,2]
[360287262,1746709832637,-3503.54924163,0.00019886,2]
[360287264,1746709832650,-7584.80622634,0.00019886,2]
[360287352,1746709837961,-1213.83625449,0.00019886,2]
[360287353,1746709838038,-611.70497818,0.00019886,2]
[360287354,1746709838231,-4198.22780613,0.00019886,2]
[360287355,1746709838262,-2232.97516598,0.00019886,2]
[360287356,1746709838275,-20000.0,0.00019886,2]
[360287357,1746709838288,-2813.57906416,0.00019886,2]
[360287358,1746709838299,-824.93485951,0.00019886,2]
[360287359,1746709838315,-884.96871314,0.00019886,2]
[360287360,1746709838333,-1481.02079222,0.00019886,2]
[360287361,1746709838345,-953.82884201,0.00019886,2]
[360287362,1746709838356,-355.44831541,0.00019886,2]
[360287364,1746709840588,-494.99999995,0.00019886,2]
[360287365,1746709840599,-654.839996,0.00019886,2]
[360287366,1746709840612,-7070.31382697,0.00019886,2]
[360287367,1746709840622,-2784.32969567,0.00019886,2]
[360287368,1746709840678,-3435.25600433,0.00019886,2]
[360287369,1746709840688,-500.0,0.00019886,2]
[360287370,1746709840698,-2288.69518469,0.000199,2]
[360287371,1746709840710,-418.20811531,0.000199,2]
[360287372,1746709840720,-81.79188469,0.000199,2]
[360287373,1746709840732,-115.18576151,0.000199,2]
[360287374,1746709840741,-275.08140563,0.000199,2]
[360287375,1746709840751,-187.19489224,0.000199,2]
[360287376,1746709840763,-812.80510776,0.000199,2]
[360287377,1746709840774,-133.40583643,0.000199,2]
[360287378,1746709840818,-6209.48648677,0.000199,2]
[360287379,1746709840827,-161.0,0.00019922,2]
[360287380,1746709840836,-556.508,0.00019932,2]
[360287381,1746709840845,-1460.302,0.00019932,2]
[360287382,1746709840855,-598.511,0.00019932,2]
[360287383,1746709840864,-926.233,0.00019932,2]
[360287384,1746709840874,-1245.0,0.00019932,2]
[360287385,1746709840884,-5935.0,0.00019932,2]
[360287386,1746709840893,-1143.0,0.00019932,2]
[360287387,1746709840902,-6790.0,0.00019932,2]
[360287388,1746709840912,-4020.0,0.00019932,2]
[360287389,1746709840922,-178.325,0.00019932,2]
[360287390,1746709841084,-275.955,0.00019932,2]
[360287391,1746709841099,-880.0,0.00019932,2]
[360287392,1746709841109,-879.0,0.00019932,2]
[360287393,1746709841119,-151.0,0.0001996,2]
[360287394,1746709841128,-300.85583216,0.0001996,2]
[360287395,1746709841137,-668.65185757,0.0001996,2]
[360287396,1746709841146,-161.0,0.00019962,2]
[360287397,1746709841155,-161.0,0.00019962,2]
[360287398,1746709841164,-161.0,0.00019962,2]
[360287399,1746709841173,-312.72305649,0.00019962,2]
[360287400,1746709841183,-432.094873,0.00019963,2]
[360287401,1746709841192,-500.0,0.00019971,2]
[360287402,1746709841201,-426.7074459,0.00019971,2]
[360287403,1746709841387,-73.2925541,0.00019971,2]
[360287404,1746709841397,-500.0,0.00019971,2]
[360287405,1746709841407,-455.64354579,0.00019971,2]
[360287406,1746709841419,-44.35645421,0.00019971,2]
[360287407,1746709841429,-481.43072266,0.00019971,2]
[360287408,1746709841438,-156.81805497,0.00019971,2]
[360287409,1746709841449,-343.18194503,0.00019971,2]
[360287410,1746709841459,-500.0,0.00019971,2]
[360287411,1746709841471,-191.17305497,0.00019971,2]
[360287412,1746709841483,-308.82694503,0.00019971,2]
[360287413,1746709841493,-350.57244701,0.00019971,2]
[360287414,1746709841538,-149.42755299,0.00019971,2]
[360287415,1746709841548,-500.0,0.00019971,2]
[360287416,1746709841558,-500.0,0.00019971,2]
[360287417,1746709841568,-500.0,0.00019971,2]
[360287418,1746709841580,-500.0,0.00019971,2]
[360287419,1746709841590,-557.3262438,0.00019971,2]
[360287420,1746709841600,-500.0,0.00019971,2]
[360287421,1746709841611,-500.0,0.00019971,2]
[360287422,1746709841620,-500.0,0.00019971,2]
[360287423,1746709841630,-500.0,0.00019971,2]
[360287424,1746709841639,-500.0,0.00019971,2]
[360287425,1746709841652,-500.0,0.00019971,2]
[360287426,1746709841662,-500.0,0.00019971,2]
[360287427,1746709841671,-286.2288508,0.00019971,2]
[360287428,1746709841683,-213.7711492,0.00019971,2]
[360287429,1746709841692,-500.0,0.00019971,2]
[360287430,1746709841702,-500.0,0.00019971,2]
[360287431,1746709841711,-500.0,0.00019971,2]
[360287432,1746709841722,-500.0,0.00019971,2]
[360287433,1746709841731,-500.0,0.00019971,2]
[360287434,1746709841740,-500.0,0.00019971,2]
[360287435,1746709841749,-500.0,0.00019971,2]
[360287436,1746709841759,-500.0,0.00019971,2]
[360287437,1746709841768,-500.0,0.00019971,2]
[360287438,1746709841778,-500.0,0.00019971,2]
[360287439,1746709841787,-500.0,0.00019971,2]
[360287440,1746709841797,-500.0,0.00019971,2]
[360287441,1746709841807,-500.0,0.00019971,2]
[360287442,1746709841816,-500.0,0.00019971,2]
[360287443,1746709841825,-500.0,0.00019971,2]
[360287444,1746709841835,-500.0,0.00019971,2]
[360287445,1746709841844,-500.0,0.00019971,2]
[360287446,1746709841854,-500.0,0.00019971,2]
[360287447,1746709841863,-500.0,0.00019971,2]
[360287448,1746709841874,-500.0,0.00019971,2]
[360287449,1746709841884,-500.0,0.00019971,2]
[360287450,1746709841893,-634.7593014,0.00019971,2]
[360287451,1746709841904,-500.0,0.00019971,2]
[360287452,1746709841914,-500.0,0.00019971,2]
[360287453,1746709841924,-500.0,0.00019971,2]
[360287454,1746709841933,-500.0,0.00019971,2]
[360287455,1746709841943,-500.0,0.00019971,2]
[360287456,1746709841952,-500.0,0.00019971,2]
[360287457,1746709841962,-500.0,0.00019971,2]
[360287458,1746709841972,-500.0,0.00019971,2]
[360287459,1746709841982,-500.0,0.00019971,2]
[360287460,1746709841991,-500.0,0.00019971,2]
[360287461,1746709842000,-500.0,0.00019971,2]
[360287462,1746709842009,-500.0,0.00019971,2]
[360287463,1746709842019,-500.0,0.00019971,2]
[360287464,1746709842030,-500.0,0.00019971,2]
[360287465,1746709842039,-500.0,0.00019971,2]
[360287466,1746709842050,-500.0,0.00019971,2]
[360287467,1746709842060,-500.0,0.00019971,2]
[360287468,1746709842070,-500.0,0.00019971,2]
[360287469,1746709842079,-500.0,0.00019971,2]
[360287470,1746709842088,-300.0,0.00019971,2]
[360287471,1746709842097,-322.89635771,0.00019971,2]
[360287472,1746709842108,-535.33318282,0.00019971,2]
[360287473,1746709842117,-183.71790043,0.00019971,2]
[360287474,1746709842127,-266.01351173,0.00019972,2]
[360287475,1746709842136,-17933.48520139,0.00019972,2]
[360287476,1746709842148,-3799.11854336,0.00019972,2]
[360287477,1746709842159,-867.89771197,0.00019972,2]
[360287478,1746709842254,-938.88741432,0.00019972,2]
[360287479,1746709842265,-3502.92483313,0.00019972,2]
[360287480,1746709842277,-728302.63257576,0.00019972,2]
[360287481,1746709842286,-300.0,0.00019972,2]
[360287482,1746709842297,-287759.30382889,0.00019972,2]
[360287483,1746709842307,-151.0,0.00019972,2]
[360287484,1746709842317,-151.0,0.00019972,2]
[360287485,1746709842326,-151.0,0.00019972,2]
[360287486,1746709842336,-151.0,0.00019972,2]
[360287487,1746709842345,-18203.0,0.00019973,2]
[360287488,1746709842355,-500.0,0.00019973,2]
[360287489,1746709842364,-500.0,0.00019973,2]
[360287490,1746709842374,-500.0,0.00019973,2]
[360287491,1746709842384,-500.0,0.00019973,2]
[360287492,1746709842394,-1084.0,0.00019973,2]
[360287493,1746709842404,-512.38063991,0.00019973,2]
[360287494,1746709842414,-300.0,0.00019973,2]
[360287495,1746709842424,-500.0,0.00019973,2]
[360287496,1746709842434,-530.01864699,0.00019973,2]
[360287497,1746709842443,-1438.783,0.00019981,2]
[360287498,1746709842453,-167.39250447,0.00019981,2]
[360287499,1746709842463,-12500.0,0.00019981,2]
[360287500,1746709842474,-151.0,0.00019986,2]
[360287501,1746709842484,-151.0,0.00019986,2]
[360287502,1746709842494,-209.353175,0.00019986,2]
[360287503,1746709842503,-151.0,0.00019986,2]
[360287504,1746709842513,-472.537456,0.00019986,2]
[360287505,1746709842523,-472.537456,0.00019986,2]
[360287506,1746709842533,-160.577139,0.00019986,2]
[360287507,1746709842543,-513.406847,0.00019986,2]
[360287508,1746709842553,-513.406847,0.00019986,2]
[360287509,1746709842562,-6008.8553884,0.00019986,2]
[360287510,1746709842573,-151.0,0.00019986,2]
[360287511,1746709842583,-55425.7379999,0.00019986,2]
[360287512,1746709842593,-10256.9391737,0.00019986,2]
[360287513,1746709842602,-151.0,0.00019986,2]
[360287514,1746709842613,-151.0,0.00019986,2]
[360287515,1746709842623,-49211.69990931,0.00019986,2]
[360287516,1746709842683,-741.29069357,0.00019986,2]
[360287519,1746709842927,-3018.15973042,0.00019986,2]
[360287521,1746709842955,-151.0,0.00019986,2]
[360287522,1746709842985,-2001.705633,0.00019986,2]
[360287523,1746709843012,-2001.705633,0.00019986,2]
[360287524,1746709843034,-151.0,0.00019986,2]
[360287525,1746709843058,-2752.00796154,0.00019986,2]
[360287526,1746709843091,-1000.0,0.00019986,2]
[360287528,1746709844801,-15271.10087165,0.00019986,2]
[360287529,1746709844830,-431.899998,0.00019986,2]
[360287530,1746709844842,-2066.8021701,0.00019986,2]
[360287531,1746709844875,-506.62630079,0.00019986,2]
[360287532,1746709844886,-352.72799642,0.00019986,2]
[360287533,1746709844953,-2513.09890421,0.00019986,2]
[360287534,1746709844965,-9280.40974906,0.00019986,2]
[360287535,1746709845008,-1669.93705332,0.00019986,2]
[360287536,1746709845019,-485.305,0.00019986,2]
[360287537,1746709845030,-1520.90072321,0.00019986,2]
[360287538,1746709845039,-151.0,0.00019986,2]
[360287539,1746709845048,-188.696678,0.00019986,2]
[360287540,1746709845058,-188.696678,0.00019986,2]
[360287541,1746709845067,-151.0,0.00019986,2]
[360287542,1746709845076,-2301.765634,0.00019986,2]
[360287543,1746709845086,-2301.765634,0.00019986,2]
[360287544,1746709845095,-151.0,0.00019986,2]
[360287545,1746709845105,-193.522304,0.00019986,2]
[360287546,1746709845114,-151.0,0.00019986,2]
[360287547,1746709845123,-193.522304,0.00019986,2]
[360287548,1746709845132,-151.387049,0.00019986,2]
[360287549,1746709845141,-151.0,0.00019986,2]
[360287550,1746709845150,-151.0,0.00019986,2]
[360287551,1746709845159,-151.0,0.00019986,2]
[360287552,1746709845168,-151.0,0.00019986,2]
[360287553,1746709845177,-151.0,0.00019986,2]
[360287554,1746709845186,-246.064283,0.00019986,2]
[360287555,1746709845195,-151.0,0.00019986,2]
[360287556,1746709845204,-151.0,0.00019986,2]
[360287557,1746709845213,-246.064283,0.00019986,2]
[360287558,1746709845225,-157.885812,0.00019986,2]
[360287559,1746709845234,-151.0,0.00019986,2]
[360287560,1746709845243,-151.0,0.00019986,2]
[360287561,1746709845253,-167.049555,0.00019986,2]
[360287562,1746709845262,-167.049555,0.00019986,2]
[360287563,1746709845271,-151.0,0.00019986,2]
[360287564,1746709845281,-151.0,0.00019986,2]
[360287565,1746709845290,-151.0,0.00019986,2]
[360287566,1746709845299,-151.0,0.00019986,2]
[360287567,1746709845309,-151.0,0.00019986,2]
[360287568,1746709845318,-151.0,0.00019986,2]
[360287569,1746709845327,-151.0,0.00019986,2]
[360287570,1746709845337,-151.0,0.00019986,2]
[360287571,1746709845346,-151.0,0.00019986,2]
[360287572,1746709845356,-90.73465107,0.00019986,2]
[360287573,1746709845368,-60.26534893,0.00019986,2]
[360287574,1746709845378,-151.0,0.00019986,2]
[360287575,1746709845388,-151.0,0.00019986,2]
[360287576,1746709845398,-154.535928,0.00019986,2]
[360287577,1746709845407,-151.0,0.00019986,2]
[360287578,1746709845417,-151.0,0.00019986,2]
[360287579,1746709845426,-385.0,0.00019986,2]
[360287580,1746709845435,-151.0,0.0001999,2]
[360287581,1746709845447,-151.0,0.0001999,2]
[360287582,1746709845456,-151.0,0.0001999,2]
[360287583,1746709845465,-151.0,0.0001999,2]
[360287584,1746709845475,-151.0,0.0001999,2]
[360287585,1746709845485,-151.0,0.0001999,2]
[360287586,1746709845494,-335.668686,0.0001999,2]
[360287587,1746709845503,-151.0,0.0001999,2]
[360287588,1746709845513,-335.668686,0.0001999,2]
[360287589,1746709845522,-154.939559,0.0001999,2]
[360287590,1746709845532,-151.0,0.0001999,2]
[360287591,1746709845542,-155.879233,0.0001999,2]
[360287592,1746709845551,-151.0,0.0001999,2]
[360287593,1746709845561,-200.480455,0.0001999,2]
[360287594,1746709845572,-312.72305649,0.0001999,2]
[360287595,1746709845582,-151.0,0.0001999,2]
[360287596,1746709845592,-151.0,0.0001999,2]
[360287597,1746709845601,-151.0,0.0001999,2]
[360287598,1746709845611,-151.0,0.0001999,2]
[360287599,1746709845620,-4990.32465533,0.0001999,2]
[360287600,1746709845631,-2533.65043445,0.0001999,2]
[360287601,1746709845645,-2903.04000028,0.0001999,2]
[360287602,1746709845672,-450.0,0.0001999,2]
[360287603,1746709845683,-471.928098,0.0001999,2]
[360287604,1746709845694,-1151.05681194,0.0001999,2]
[360287605,1746709845703,-690.0,0.00019997,2]
[360287606,1746709845713,-151.0,0.00019997,2]
[360287607,1746709845723,-151.0,0.00019997,2]
[360287608,1746709845733,-152.368271,0.00019997,2]
[360287609,1746709845742,-472.537456,0.00019997,2]
[360287611,1746709845751,-472.537456,0.00019997,2]
[360287612,1746709845761,-513.406847,0.00019997,2]
[360287613,1746709845771,-513.406847,0.00019997,2]
[360287615,1746709845780,-151.0,0.00019997,2]
[360287617,1746709845790,-151.0,0.00019997,2]
[360287619,1746709845799,-151.0,0.00019997,2]
[360287621,1746709845809,-2001.705633,0.00019997,2]
[360287623,1746709845818,-2001.705633,0.00019997,2]
[360287625,1746709845827,-151.0,0.00019997,2]
[360287627,1746709845837,-151.0,0.00019997,2]
[360287629,1746709845847,-151.0,0.00019997,2]
[360287631,1746709845857,-151.0,0.00019997,2]
[360287632,1746709845866,-193.522304,0.00019997,2]
[360287634,1746709845875,-151.0,0.00019997,2]
[360287635,1746709845885,-193.522304,0.00019997,2]
[360287636,1746709845894,-151.0,0.00019997,2]
[360287637,1746709845904,-171.873177,0.00019997,2]
[360287638,1746709845914,-246.064283,0.00019997,2]
[360287639,1746709845923,-246.064283,0.00019997,2]
[360287640,1746709845932,-167.049555,0.00019997,2]
[360287641,1746709845943,-167.049555,0.00019997,2]
[360287642,1746709845952,-151.0,0.00019997,2]
[360287643,1746709845962,-151.0,0.00019997,2]
[360287644,1746709845973,-1000.0,0.00019998,2]
[360287645,1746709845982,-500.0,0.00019999,2]
[360287646,1746709845991,-360.06602874,0.00019999,2]
[360287647,1746709846001,-192.65,0.00019999,2]
[360287648,1746709846010,-6680.94168512,0.00019999,2]
[360287649,1746709846031,-631.44,0.00019999,2]
[360287650,1746709846042,-1356.4999996,0.00019999,2]
[360287651,1746709846052,-263.13035318,0.00019999,2]
[360287687,1746709847047,-1661.4457,0.00019999,2]
[360287688,1746709847073,-1526.77504163,0.00019999,2]
[360287689,1746709847100,-379.76722047,0.00019999,2]
[360287690,1746709847124,-1037.79721828,0.00019999,2]
[360287691,1746709849491,-4762.20278172,0.00019999,2]
[360287692,1746709849502,-3193.68590839,0.00019999,2]
[360287693,1746709849513,-151.0,0.00019999,2]
[360287694,1746709849525,-151.0,0.00019999,2]
[360287695,1746709849536,-94983.43842984,0.0002,2]
[360287696,1746709849553,-119982.95978371,0.0002,2]
[360287697,1746709849568,-2508.77207442,0.0002,2]
[360287698,1746709849591,-150.0,0.00019999,2]
[360287699,1746709849602,-386.91118955,0.0002,2]
[360287700,1746709849616,-320.2207373,0.0002,2]
[360287701,1746709849756,-322.26139643,0.0002,2]
[360287702,1746709849768,-1903.4048917,0.0002,2]
[360287703,1746709849780,-683.21054471,0.0002,2]
[360287704,1746709849793,-10211.94307124,0.0002,2]
[360287705,1746709849827,-467.96961399,0.0002,2]
[360287706,1746709849844,-47664.54889142,0.0002,2]
[360287707,1746709849856,-5219.74387048,0.0002,2]
[360287708,1746709849868,-67934.28881896,0.0002,2]
[360287709,1746709985416,4254.17,0.00019146,2]
[360287710,1746710004289,17164.39,0.00019149,2]
[360287711,1746710025381,10000.0,0.0003,120]
[360287712,1746710046807,150.0,0.0003,30]
[360287713,1746710121594,23900.0,0.00019098,2]
[360287715,1746710222701,600.0,0.0003,30]
[360287716,1746710253236,505.0,0.0003,30]
[360287717,1746710332939,16650.42,0.0003,120]
[360287719,1746710499836,707.36,0.00017013,2]
[360287720,1746710500043,707.36,0.00019277,2]
[360287721,1746710516317,2170.0,0.0003,30]
[360287722,1746710564987,1000.0,0.00018921,2]
[360287723,1746710605783,2751.0,0.0001893,2]
[360287724,1746710634125,-200.0,0.00019675,2]
[360287725,1746710634151,-161.3413666,0.000197,2]
[360287726,1746710634177,-1200.0,0.00019724,2]
[360287727,1746710634205,-300.0,0.00019724,2]
[360287728,1746710634231,-850.0,0.00019724,2]
[360287729,1746710634257,-300.0,0.00019724,2]
[360287730,1746710634283,-23938.6586334,0.00019725,2]
[360287731,1746710655285,150.0,0.0003,30]
[360287732,1746710661420,250.0,0.00017,2]
[360287733,1746710662514,300.0,0.00019,2]
[360287734,1746710666746,156.14,0.00018939,2]
[360287735,1746710711191,1000.0,0.000154,2]
[360287736,1746710729516,799.87654598,0.00011,2]
[360287737,1746710825603,500.0,0.00018922,2]
[360287738,1746710835872,4009.94232269,0.00015,2]
[360287739,1746710839362,13923.78552821,0.00015,2]
[360287740,1746710849693,162.06,0.00018907,2]
[360287741,1746710880006,16161.63169681,0.0001,2]
[360287742,1746710881840,1719.21079795,0.000181,2]
[360287743,1746710898107,2000.0,0.0001439,2]